Cogmind - Beta 17 @@@ ROGUE MODE // 2026.07.01 @ 08:54:25 Player: goobie Result: Destroyed by H-77 Assassin with High-powered Shotgun Performance ------------- Evolutions (7) 3500 Regions Visited (12) 2400 Robots Destroyed (30) 150 Value Destroyed (640) 640 Prototype IDs (8) 160 Alien Tech Used (0) 0 Bonus (0) 0 TOTAL SCORE: 6850 Bonus ------- None Cogmind --------- Core Integrity 0/1300 Matter 39/300 Energy 99/100 System Corruption 1% Temperature Cool (0) Movement Core (50) Location -3/Research Parts ------- > --- POWER (4) -------- (None) > --- PROPULSION (7) --- (None) > --- UTILITY (6) ------ (None) > --- WEAPON (4) ------- (None) > --- INVENTORY (5) ---- Graviton Reactor Faulty Precision Energy Filter Peak State ------------ > --- POWER ------------ Improved Deuterium Engine Light Antimatter Reactor Particle Reactor > --- PROPULSION ------- Improved VTOL Module Improved VTOL Module Biomechanical Wings Biomechanical Wings Biomechanical Wings Impulse Thruster Array > --- UTILITY ---------- Improved Cooling System Advanced Weight Redist. System Advanced Visual Processing Unit Improved Transmission Jammer Advanced ECM Suite Experimental Hacking Suite > --- WEAPON ----------- Minigun > --- INVENTORY -------- Graviton Reactor VTOL Module VTOL Module VTOL Module Precision Energy Filter [Rating: 94] Favorites ----------- Power Light Ion Engine Engine Light Ion Engine Reactor Light Antimatter Reactor Propulsion Improved VTOL Module Leg Aluminum Leg Flight Unit Improved VTOL Module Utility Advanced Visual Processing Unit Device Improved Cooling System Storage Small Storage Unit Processor Advanced Visual Processing Unit Hackware Hacking Suite Protection Hardened Light Armor Plating Weapon Particle Cannon Energy Gun High-powered Field Laser Energy Cannon Particle Cannon Ballistic Gun Improved Assault Rifle Build | -11 -10 -9 -8 -7 -6 -5 -5 -5 -4 -4 -4 -3 ------- Run | Yrd Mat Mat Mat Fac Fac Fac Ext Cet Fac Upp Upp Res Slots Evolved 14 | . . 2 2 2 2 2 . . 2 . . 2 Power 3 | . . . 1 . . 1 . . . . . 1 Propulsion 5 | . . 1 1 . 1 1 . . . . . 1 Utility 4 | . . 1 . 1 1 . . . 1 . . . Weapon 2 | . . . . 1 . . . . 1 . . . Parts Attached 65 | 6 1 16 12 6 3 8 . . 6 . . 7 Power 9 | 1 . 1 3 . 1 1 . . 1 . . 1 Engine 7 | 1 . 1 3 . 1 1 . . . . . . Core . | . . . . . . . . . . . . . Reactor 2 | . . . . . . . . . 1 . . 1 Propulsion 25 | 2 . 6 6 1 . 4 . . 1 . . 5 Treads . | . . . . . . . . . . . . . Leg 4 | 2 . 2 . . . . . . . . . . Wheel . | . . . . . . . . . . . . . Hover . | . . . . . . . . . . . . . Flight 21 | . . 4 6 1 . 4 . . 1 . . 5 Utility 18 | 1 1 5 2 3 . 2 . . 3 . . 1 Device 10 | . . 2 1 2 . 2 . . 2 . . 1 Storage 1 | 1 . . . . . . . . . . . . Processor 3 | . 1 1 1 . . . . . . . . . Hackware 2 | . . . . 1 . . . . 1 . . . Protection 2 | . . 2 . . . . . . . . . . Artifact . | . . . . . . . . . . . . . Weapon 13 | 2 . 4 1 2 2 1 . . 1 . . . Energy Gun 5 | 2 . . . . 2 1 . . . . . . Energy Cannon 2 | . . 1 1 . . . . . . . . . Ballistic Gun 6 | . . 3 . 2 . . . . 1 . . . Ballistic Cannon . | . . . . . . . . . . . . . Launcher . | . . . . . . . . . . . . . Special Weapon . | . . . . . . . . . . . . . Impact Weapon . | . . . . . . . . . . . . . Slashing Weapon . | . . . . . . . . . . . . . Piercing Weapon . | . . . . . . . . . . . . . Special Melee Weapon . | . . . . . . . . . . . . . Unidentified Prototypes 6 | . . 1 1 . 2 1 . . 1 . . . Parts Lost 37 | . . 4 6 1 . 4 3 . 4 . . 15 Power 6 | . . . 1 . . 1 2 . . . . 2 Propulsion 15 | . . 2 3 1 . . . . 1 . . 8 Utility 9 | . . 1 1 . . 3 . . 1 . . 3 Weapon 7 | . . 1 1 . . . 1 . 2 . . 2 Highest Loss Streak 12 | . . 2 3 1 . 4 3 . 4 . . 12 To Critical Strikes . | . . . . . . . . . . . . . Average Backups 5 | 2 5 6 4 4 4 4 5 5 4 4 4 4 Power . | . 1 1 1 . . . . . . . . . Propulsion 1 | 1 2 1 . 2 1 1 3 3 3 3 3 2 Utility . | . 1 1 . . . . 1 1 . . . . Weapon 1 | . 1 1 3 2 2 1 1 1 1 1 1 . Tool/Special . | . . . . . . . . . . . . . Unused Backups 8 | . . 6 . . . . . . . . . 2 Power 1 | . . . . . . . . . . . . 1 Propulsion 2 | . . 2 . . . . . . . . . . Utility 4 | . . 3 . . . . . . . . . 1 Weapon 1 | . . 1 . . . . . . . . . . Tool/Special . | . . . . . . . . . . . . . Average Slot Usage (%) 80 | . 97 86 87 77 81 88 86 70 74 73 73 55 Engine 10 | . 14 11 15 15 13 15 15 5 5 5 5 2 Reactor 1 | . . . . . . . . . 3 5 5 4 Leg 5 | . 28 14 . . . . . . . . . . Flight 21 | . . 9 30 28 30 35 35 35 31 31 31 21 Device 9 | . . . 16 12 13 13 11 11 15 15 15 13 Storage 3 | . 14 7 . . . . . . . . . . Processor 7 | . 11 11 9 7 6 5 5 5 5 5 5 3 Hackware 1 | . . . . 5 6 3 . . 1 5 5 2 Protection 2 | . . 10 . . . . . . . . . . Energy Gun 5 | . 28 3 . . 4 6 11 11 8 . . . Energy Cannon 3 | . . 10 8 . . . . . . . . . Ballistic Gun 5 | . . 7 7 6 4 5 5 . 1 5 5 3 Peak Build Rating 94 | 6 7 22 25 36 43 64 63 53 86 72 72 94 Average Rating 38 | 4 6 14 21 32 41 59 61 53 69 72 72 68 On Entrance 40 | . 6 7 19 24 36 43 63 53 53 72 72 72 Avg Prop Armor Cover (%) 11 | . . . 12 . . 2 . . . . . 14 Naked Turns 18 | . . . . . . . . . . . . 18 Heaviest Build 49 | 12 12 20 14 19 23 41 41 19 41 33 33 49 Greatest Support 53 | 20 20 30 25 19 23 42 42 33 44 44 44 53 Greatest Overweight (x) 4 | 2 . 4 . . . . . . . . . . Average Overweight (x) . | . . . . . . . . . . . . . Largest Inventory Capacity 8 | 8 8 8 5 5 5 5 5 5 5 5 5 5 Average Capacity 5 | 7 8 7 5 5 5 5 5 5 5 5 5 5 Most Carried 8 | 6 6 8 5 5 5 5 5 5 5 4 4 5 Average Carried 5 | 3 5 6 4 4 4 4 5 5 4 4 4 4 Final Capacity 8 | 8 8 5 5 5 5 5 5 5 5 5 5 5 Final Carried 6 | 4 6 4 5 5 4 5 5 5 4 4 4 2 Class Distribution -------------------- 55% | Sprinter 33% | Mutant 6% | Infiltrator-Sprinter 4% | Generator-Sprinter Dominant Class ---------------- Mutant | -10/Materials Mutant | -9/Materials Sprinter | -8/Materials Sprinter | -7/Factory Sprinter | -6/Factory Sprinter | -5/Factory Sprinter | -5/Extension Sprinter | -5/Cetus Sprinter | -4/Factory Sprinter | -4/Upper Caves Sprinter | -4/Upper Caves Infiltrator-Sprinter | -3/Research Resources | -11 -10 -9 -8 -7 -6 -5 -5 -5 -4 -4 -4 -3 ----------- Run | Yrd Mat Mat Mat Fac Fac Fac Ext Cet Fac Upp Upp Res Matter Collected 837 | 166 34 284 43 116 . 106 55 . 16 . . 17 Remotely . | . . . . . . . . . . . . . Salvage Created 810 | . 84 449 120 . . 106 51 . . . . . Parts 58 | . 4 30 16 . . 7 1 . . . . . Haulers Intercepted . | . . . . . . . . . . . . . Recyclers Shooed 1 | . . 1 . . . . . . . . . . Parts Field Recycled . | . . . . . . . . . . . . . Retrieved Matter . | . . . . . . . . . . . . . Parts Self-Destructed 1 | . . . . . . . . . . 1 . . Prevented . | . . . . . . . . . . . . . Parts Restored . | . . . . . . . . . . . . . Kills | -11 -10 -9 -8 -7 -6 -5 -5 -5 -4 -4 -4 -3 ------- Run | Yrd Mat Mat Mat Fac Fac Fac Ext Cet Fac Upp Upp Res Combat Hostiles Destroyed 26 | . 2 12 8 . . 4 . . . . . . Guns 15 | . 1 6 4 . . 4 . . . . . . Cannons 10 | . . 6 4 . . . . . . . . . Classes Destroyed 5 | . 1 4 . . . . . . . . . . Recycler 1 | . . 1 . . . . . . . . . . Watcher 3 | . . 1 . . . . 2 . . . . . Swarmer 19 | . . 7 8 . . 4 . . . . . . Grunt 5 | . 2 3 . . . . . . . . . . Sentry 2 | . . 2 . . . . . . . . . . Best Kill Streak 4 | . 2 4 3 . . 4 1 . . . . . Combat Bots Only 4 | . 2 4 3 . . 4 . . . . . . Max Kills in Single Turn 2 | . 1 1 2 . . 1 1 . . . . . Gunslinging . | . . . . . . . . . . . . . Exploded . | . . . . . . . . . . . . . Melee . | . . . . . . . . . . . . . Uniques/NPCs Destroyed . | . . . . . . . . . . . . . Combat | -11 -10 -9 -8 -7 -6 -5 -5 -5 -4 -4 -4 -3 -------- Run | Yrd Mat Mat Mat Fac Fac Fac Ext Cet Fac Upp Upp Res Hostile Shots Fired 539 | . 19 130 61 9 . 41 47 . 29 . 2 201 Missed 247 | . 1 45 31 3 . 17 23 . 19 . 2 106 Hits 292 | . 18 85 30 6 . 24 24 . 10 . . 95 Melee 31 | . . . . . . . . . . . . 31 Projectile 261 | . 18 85 30 6 . 24 24 . 10 . . 64 AOE 6 | . . . . . . . . . 3 . . 3 Critical Strikes 16 | . . 1 1 . . . 1 . 2 . . 11 Part Disruptions 1 | . . . . . . . . . 1 . . . Damage Taken 5090 | . 199 994 383 47 . 354 550 . 327 . . 2236 Core 1891 | . 33 226 56 . . 81 138 . 51 . . 1306 Absorbed by Shields . | . . . . . . . . . . . . . Core Remaining (%) 86 | 100 86 43 89 100 100 . . 78 . . 95 . Volleys Fired 93 | . 10 33 15 . 3 20 7 . . . . 5 Largest 3 | . 2 2 2 . 2 2 3 . . . . 2 Hottest 156 | . 90 108 93 . 93 93 156 . . . . 60 Shots Fired 180 | . 20 66 30 . 6 28 21 . . . . 9 Gun 132 | . 20 33 15 . 6 28 21 . . . . 9 Cannon 48 | . . 33 15 . . . . . . . . . Launcher . | . . . . . . . . . . . . . Special . | . . . . . . . . . . . . . Kinetic 69 | . . 27 15 . 3 8 7 . . . . 9 Thermal 95 | . 10 33 15 . 3 20 14 . . . . . Explosive . | . . . . . . . . . . . . . Electromagnetic 16 | . 10 6 . . . . . . . . . . Robot Hit Streak 8 | . 8 6 3 . 4 5 7 . . . . 2 Robot Miss Streak 5 | . 3 3 3 . 2 5 4 . . . . 2 Penetration Max . | . . . . . . . . . . . . . Secondary Targets 1 | . . . . . . 1 . . . . . . Max Gunslinging Chain 1 | . . . . . . 1 . . . . . . Shots Hit Robots 97 | . 16 38 15 . 3 11 10 . . . . 4 Core Hits 42 | . 3 17 8 1 1 6 3 . . . . 3 Critical Kills 1 | . . . . . . 1 . . . . . . Critical Parts Destroyed . | . . . . . . . . . . . . . Critical Strikes 5 | . 3 . . . . 1 1 . . . . . Burn 3 | . 2 . . . . . 1 . . . . . Destroy 1 | . . . . . . 1 . . . . . . Corrupt 1 | . 1 . . . . . . . . . . . Melee Attacks . | . . . . . . . . . . . . . Impact . | . . . . . . . . . . . . . Slashing . | . . . . . . . . . . . . . Piercing . | . . . . . . . . . . . . . Sneak Attacks . | . . . . . . . . . . . . . Combat Hostiles . | . . . . . . . . . . . . . Follow-up Attacks . | . . . . . . . . . . . . . Damage Inflicted 1689 | . 218 665 290 2 52 189 204 . . . . 69 Guns 1153 | . 218 311 127 . 52 189 204 . . . . 52 Cannons 510 | . . 347 163 . . . . . . . . . Explosions . | . . . . . . . . . . . . . Melee . | . . . . . . . . . . . . . Ramming 26 | . . 7 . 2 . . . . . . . 17 Kinetic 605 | . . 271 127 . 29 79 47 . . . . 52 Thermal 912 | . 112 347 163 . 23 110 157 . . . . . Explosive . | . . . . . . . . . . . . . Electromagnetic 146 | . 106 40 . . . . . . . . . . Impact . | . . . . . . . . . . . . . Slashing . | . . . . . . . . . . . . . Piercing . | . . . . . . . . . . . . . Highest Corruption 3 | . . . . . . 3 3 3 . . . 1 Average Corruption 2 | . . . . . . 3 3 3 . . . 1 Corruption Purged . | . . . . . . . . . . . . . Corruption Blocked . | . . . . . . . . . . . . . Effects 6 | . . . . . . 3 3 . . . . . Message Errors 1 | . . . . . . . 1 . . . . . Matter Fused 1 | . . . . . . 1 . . . . . . Heat Flow Errors 1 | . . . . . . . 1 . . . . . Energy Discharges 1 | . . . . . . 1 . . . . . . Data Loss (minor) 2 | . . . . . . 1 1 . . . . . Overload Shots . | . . . . . . . . . . . . . Overflow Damage 29 | . . 29 . . . . . . . . . . Projectiles . | . . . . . . . . . . . . . Explosions 29 | . . 29 . . . . . . . . . . Melee . | . . . . . . . . . . . . . Knockbacks . | . . . . . . . . . . . . . Impact . | . . . . . . . . . . . . . Kinetic . | . . . . . . . . . . . . . Secondary . | . . . . . . . . . . . . . Self-Inflicted Damage 132 | . . 123 . 1 . . . . . . . 8 Shots 2 | . . 2 . . . . . . . . . . Rammed 2 | . . . . 1 . . . . . . . 1 Targets Rammed 5 | . . 3 . 1 . . . . . . . 1 Kicked 3 | . . 3 . . . . . . . . . . Crushed . | . . . . . . . . . . . . . Highest Temperature 351 | . 324 234 61 5 114 16 185 . 351 . . . Average Temperature 86 | . 161 93 29 5 50 9 40 . 169 . . . Received Heat Transfer 1126 | . 108 240 54 12 . . 108 . 453 . . 151 Effects 3 | . 1 1 . . . . . . 1 . . . Shutdowns 1 | . . . . . . . . . 1 . . . Energy Bleed 2 | . 1 1 . . . . . . . . . . Siege Activations . | . . . . . . . . . . . . . Martial Activations . | . . . . . . . . . . . . . Shielding Activations . | . . . . . . . . . . . . . Robots Disrupted . | . . . . . . . . . . . . . Combat Hostiles . | . . . . . . . . . . . . . Robots Corrupted . | . . . . . . . . . . . . . Combat Hostiles . | . . . . . . . . . . . . . Parts Fried 1 | . 1 . . . . . . . . . . . Impact Corruptions . | . . . . . . . . . . . . . Robots Melted 1 | . 1 . . . . . . . . . . . Combat Hostiles 1 | . 1 . . . . . . . . . . . Parts Melted 3 | . 1 . 1 . . . 1 . . . . . Heat Transferred 1998 | . 481 629 296 . 37 185 370 . . . . . Parts Sabotaged . | . . . . . . . . . . . . . Parts Stolen . | . . . . . . . . . . . . . Parts Stripped . | . . . . . . . . . . . . . Power Chain Reactions . | . . . . . . . . . . . . . Alert | -11 -10 -9 -8 -7 -6 -5 -5 -5 -4 -4 -4 -3 ------- Run | Yrd Mat Mat Mat Fac Fac Fac Ext Cet Fac Upp Upp Res Maximum Alert Level 1 | . . 1 1 . . . . . . . . . Low Security (%) 96 | 100 100 98 70 100 100 100 100 100 100 . . 100 Level 1 3 | . . 1 29 . . . . . . . . . Level 2 . | . . . . . . . . . . . . . Level 3 . | . . . . . . . . . . . . . Level 4 . | . . . . . . . . . . . . . Level 5 . | . . . . . . . . . . . . . High Security . | . . . . . . . . . . . . . Max Security . | . . . . . . . . . . . . . Peak Influence 306 | . 40 249 306 156 71 60 20 . 55 . . 60 Initial 138 | . . 7 104 138 71 9 9 . . . . . Average 61 | . 12 99 180 126 46 13 10 . 11 . . 9 Influence Increases 1575 | . 83 550 392 68 18 90 62 . 120 . . 192 Destroy 0b10 Robot/C 520 | . 40 240 160 . . 80 . . . . . . Destroy 0b10 Robot/NC 20 | . . 10 . . . . 10 . . . . . Destroy Leader 106 | . . 62 30 . . 10 4 . . . . . Successful Hack 98 | . 13 7 7 38 3 . 18 . . . . 12 Disable Machine 75 | . . 75 . . . . . . . . . . Destroy Structure 36 | . . 36 . . . . . . . . . . Partial Spotted 120 | . . 15 15 15 15 . 15 . 30 . . 15 Lose Combat Pursuer 600 | . 30 105 180 15 . . 15 . 90 . . 165 Influence Decreases 1538 | . 64 320 335 228 145 89 82 . 85 35 . 155 Entered New Map 435 | . . 12 145 168 75 10 11 . . 14 . . Time Decay 863 | . 64 268 130 50 70 59 46 . 45 21 . 110 Lost Part 240 | . . 40 60 10 . 20 25 . 40 . . 45 Squads Dispatched 18 | . . 4 2 2 2 2 2 . . . . 4 Investigation 5 | . . . 1 1 1 1 1 . . . . . Extermination 2 | . . . . 1 . . . . . . . 1 Reinforcement 11 | . . 4 1 . 1 1 1 . . . . 3 Assault . | . . . . . . . . . . . . . Garrison . | . . . . . . . . . . . . . Intercept . | . . . . . . . . . . . . . Searches Triggered . | . . . . . . . . . . . . . Construction Impeded . | . . . . . . . . . . . . . Haulers Reinforced . | . . . . . . . . . . . . . Active Scanning Responses . | . . . . . . . . . . . . . Cargo Convoy Interrupts . | . . . . . . . . . . . . . Stealth | -11 -10 -9 -8 -7 -6 -5 -5 -5 -4 -4 -4 -3 --------- Run | Yrd Mat Mat Mat Fac Fac Fac Ext Cet Fac Upp Upp Res Distress Signals 9 | . . 3 3 . . . 1 1 . . . 1 Communications Jammed . | . . . . . . . . . . . . . Distress Signals . | . . . . . . . . . . . . . Times Spotted 143 | . 4 38 26 3 2 9 17 5 8 . 1 30 Peak Tracking Total 16 | . 2 13 14 3 2 4 12 5 4 . 1 16 Tactical Retreats 20 | . 1 4 6 1 . . 1 . 2 . . 5 ECM-based Alert Blocks 1 | . . . . . . . . . . . . 1 Traps | -11 -10 -9 -8 -7 -6 -5 -5 -5 -4 -4 -4 -3 ------- Run | Yrd Mat Mat Mat Fac Fac Fac Ext Cet Fac Upp Upp Res Traps Triggered 5 | . . . 2 . . . 1 . . . . 2 Indirectly . | . . . . . . . . . . . . . Trap Hack Attempts . | . . . . . . . . . . . . . Triggered . | . . . . . . . . . . . . . Disarmed 5 | . . . . . . . . . . . . 5 Reprogrammed . | . . . . . . . . . . . . . Reused . | . . . . . . . . . . . . . Traps Extracted . | . . . . . . . . . . . . . Installed . | . . . . . . . . . . . . . Triggered . | . . . . . . . . . . . . . Machines | -11 -10 -9 -8 -7 -6 -5 -5 -5 -4 -4 -4 -3 ---------- Run | Yrd Mat Mat Mat Fac Fac Fac Ext Cet Fac Upp Upp Res Machines Disabled 5 | . . 5 . . . . . . . . . . Max in Single Turn 2 | . . 2 . . . . . . . . . . Garrison Access 1 | . . . . . . . . . . . . 1 Machines Repaired . | . . . . . . . . . . . . . Machines Dismantled . | . . . . . . . . . . . . . Machines Sabotaged . | . . . . . . . . . . . . . Overloaded Fab Kills . | . . . . . . . . . . . . . Hacking | -11 -10 -9 -8 -7 -6 -5 -5 -5 -4 -4 -4 -3 --------- Run | Yrd Mat Mat Mat Fac Fac Fac Ext Cet Fac Upp Upp Res Machines Accessed 27 | . 3 4 2 4 4 1 4 . . . . 5 Terminals 26 | . 3 4 2 4 4 1 4 . . . . 4 Fabricators . | . . . . . . . . . . . . . Repair Stations . | . . . . . . . . . . . . . Recycling Units . | . . . . . . . . . . . . . Scanalyzers . | . . . . . . . . . . . . . Garrison Access 1 | . . . . . . . . . . . . 1 Total Hacks 78 | . 7 11 6 13 9 3 13 . . . . 16 Successful 37 | . 4 6 2 6 2 1 4 . . . . 12 Failed 41 | . 3 5 4 7 7 2 9 . . . . 4 Catastrophic 6 | . . . 2 . 2 . 2 . . . . . Database Lockouts . | . . . . . . . . . . . . . Manual . | . . . . . . . . . . . . . Terminals 77 | . 7 11 6 13 9 3 13 . . . . 15 Fabricators . | . . . . . . . . . . . . . Repair Stations . | . . . . . . . . . . . . . Recycling Units . | . . . . . . . . . . . . . Scanalyzers . | . . . . . . . . . . . . . Garrison Access 1 | . . . . . . . . . . . . 1 Terminal Hacks 36 | . 4 6 2 6 2 1 4 . . . . 11 Record 1 | . . . . . . . . . . . . 1 Prototype ID Bank 1 | . 1 . . . . . . . . . . . Open DSF 1 | . . . . . . . . . . . . 1 Level Access Points 1 | . . . . . . . 1 . . . . . Branch Access Points 1 | . . . 1 . . . . . . . . . Emergency Access Points 3 | . 1 . 1 1 . . . . . . . . Terminal Index 1 | . . . . 1 . . . . . . . . Recycling Unit Index 1 | . . . . 1 . . . . . . . . Alert Level 2 | . . 2 . . . . . . . . . . Locate Traps 6 | . 1 1 . 2 1 . . . . . . 1 Disarm Traps 2 | . . . . . . . . . . . . 2 Dispatch Records 2 | . . . . . . . 1 . . . . 1 Maintenance Status 2 | . 1 1 . . . . . . . . . . Security Status 1 | . . 1 . . . . . . . . . . Patrol Status 1 | . . . . . . . . . . . . 1 Transport Status 1 | . . . . . . . . . . . . 1 Investigation Status 1 | . . . . . . . 1 . . . . . Recall Investigation 1 | . . . . . . . 1 . . . . . Hauler Manifests 1 | . . . . . 1 . . . . . . . Zone Layout 6 | . . 1 . 1 . 1 . . . . . 3 Fabricator Hacks . | . . . . . . . . . . . . . Repair Station Hacks . | . . . . . . . . . . . . . Recycling Unit Hacks . | . . . . . . . . . . . . . Scanalyzer . | . . . . . . . . . . . . . Garrison Access Hacks 1 | . . . . . . . . . . . . 1 Seal Access 1 | . . . . . . . . . . . . 1 Unauthorized Hacks . | . . . . . . . . . . . . . Terminals . | . . . . . . . . . . . . . Fabricators . | . . . . . . . . . . . . . Repair Stations . | . . . . . . . . . . . . . Recycling Units . | . . . . . . . . . . . . . Scanalyzers . | . . . . . . . . . . . . . Garrison Access . | . . . . . . . . . . . . . Data Cores Recovered . | . . . . . . . . . . . . . Used . | . . . . . . . . . . . . . Hacking Detections 23 | . 2 3 2 4 3 1 4 . . . . 4 Full Trace Events 4 | . . . . 1 1 1 1 . . . . . Feedback Events . | . . . . . . . . . . . . . Feedback Blocked . | . . . . . . . . . . . . . Robot Schematics Acquired . | . . . . . . . . . . . . . Robots Built . | . . . . . . . . . . . . . Authchips . | . . . . . . . . . . . . . Time . | . . . . . . . . . . . . . Total Robot Build Rating . | . . . . . . . . . . . . . Part Schematics Acquired . | . . . . . . . . . . . . . Parts Built . | . . . . . . . . . . . . . Authchips . | . . . . . . . . . . . . . Time . | . . . . . . . . . . . . . Total Part Build Rating . | . . . . . . . . . . . . . Part Studies Acquired . | . . . . . . . . . . . . . Parts Repaired . | . . . . . . . . . . . . . Time . | . . . . . . . . . . . . . Parts Recycled . | . . . . . . . . . . . . . Recycled Matter . | . . . . . . . . . . . . . Retrieved Matter . | . . . . . . . . . . . . . Retrieved Components . | . . . . . . . . . . . . . Parts Scanalyzed . | . . . . . . . . . . . . . Part Schematics Acquired . | . . . . . . . . . . . . . Parts Damaged . | . . . . . . . . . . . . . Bothacking | -11 -10 -9 -8 -7 -6 -5 -5 -5 -4 -4 -4 -3 ------------ Run | Yrd Mat Mat Mat Fac Fac Fac Ext Cet Fac Upp Upp Res Used RIF Installer . | . . . . . . . . . . . . . Robots Hacked . | . . . . . . . . . . . . . Non-combat . | . . . . . . . . . . . . . Combat . | . . . . . . . . . . . . . Robot Hacks Applied . | . . . . . . . . . . . . . Relay Couplers Released . | . . . . . . . . . . . . . Fabnet Peak Effective % . | . . . . . . . . . . . . . Robots Rewired . | . . . . . . . . . . . . . Allies Hacked . | . . . . . . . . . . . . . Hacks Repelled . | . . . . . . . . . . . . . Allies | -11 -10 -9 -8 -7 -6 -5 -5 -5 -4 -4 -4 -3 -------- Run | Yrd Mat Mat Mat Fac Fac Fac Ext Cet Fac Upp Upp Res Total Allies . | . . . . . . . . . . . . . Largest Group . | . . . . . . . . . . . . . Highest-Rated Group . | . . . . . . . . . . . . . Highest-Rated Ally . | . . . . . . . . . . . . . Total Orders . | . . . . . . . . . . . . . Ally Attacks . | . . . . . . . . . . . . . Total Damage . | . . . . . . . . . . . . . Kills . | . . . . . . . . . . . . . Allies Corrupted . | . . . . . . . . . . . . . Allies Melted . | . . . . . . . . . . . . . Intel | -11 -10 -9 -8 -7 -6 -5 -5 -5 -4 -4 -4 -3 ------- Run | Yrd Mat Mat Mat Fac Fac Fac Ext Cet Fac Upp Upp Res Active Infowar (turns) 2025 | . . 466 274 105 146 275 118 12 131 74 17 407 Optics 2025 | . . 466 274 105 146 275 118 12 131 74 17 407 Jamming 694 | . . . . 82 146 185 . . . . . 281 ECM 27 | . . . . . . . . . 2 . . 25 Robot Analysis Total . | . . . . . . . . . . . . . Derelict Logs Recovered . | . . . . . . . . . . . . . Drone Launches . | . . . . . . . . . . . . . Drone Recoveries . | . . . . . . . . . . . . . Exploration | -11 -10 -9 -8 -7 -6 -5 -5 -5 -4 -4 -4 -3 ------------- Run | Yrd Mat Mat Mat Fac Fac Fac Ext Cet Fac Upp Upp Res Turns Passed 2500 | 68 197 658 274 105 146 275 118 12 131 74 17 425 Spaces Moved 4785 | 42 122 632 408 318 339 653 333 54 361 321 74 1128 Core 123 | 13 . 3 . . . . . . . . . 107 Treads . | . . . . . . . . . . . . . Legs 370 | 29 122 219 . . . . . . . . . . Wheels . | . . . . . . . . . . . . . Hover . | . . . . . . . . . . . . . Flight 4292 | . . 410 408 318 339 653 333 54 361 321 74 1021 Fastest Speed 19 | 50 120 29 27 26 24 21 22 22 22 23 23 19 Average Speed 34 | 124 120 70 29 26 24 21 22 22 22 23 23 28 Slowest Speed 250 | 150 120 250 40 29 26 24 22 22 27 23 23 50 Overloaded Moves . | . . . . . . . . . . . . . Propulsion Burnouts . | . . . . . . . . . . . . . Robots Hopped 71 | . . 17 13 5 2 5 7 . 6 . . 16 Potential Cave-ins . | . . . . . . . . . . . . . Cave-ins Triggered . | . . . . . . . . . . . . . Exploration Rate (%) 31 | 3 29 78 58 13 9 17 62 23 11 54 19 33 Regions Visited 12 Branch Regions 4 Pre-discovered Areas . | . . . . . . . . . . . . . Known Exits Taken 1 | . . . . . . . . 1 . . . . Unknown Exits Taken 11 | 1 1 1 1 1 1 1 1 . 1 1 1 . Scrap Searched 1 | . . . . . . . . . . 1 . . Spaces Dug . | . . . . . . . . . . . . . Terrain Destroyed 45 | . . 45 . . . . . . . . . . Melee . | . . . . . . . . . . . . . Projectile . | . . . . . . . . . . . . . AOE 45 | . . 45 . . . . . . . . . . Terrain Rammed . | . . . . . . . . . . . . . Walls Destroyed . | . . . . . . . . . . . . . Machines Disabled . | . . . . . . . . . . . . . Actions | -11 -10 -9 -8 -7 -6 -5 -5 -5 -4 -4 -4 -3 --------- Run | Yrd Mat Mat Mat Fac Fac Fac Ext Cet Fac Upp Upp Res Total 5378 | 57 152 763 520 332 391 753 354 53 400 320 73 1210 Wait 370 | . 17 63 81 5 38 56 7 . 37 . . 66 Move 4641 | 41 121 598 384 309 334 642 319 53 349 320 73 1098 Hop 61 | . . 16 10 3 2 5 6 . 5 . . 14 Pick Up 57 | 10 3 16 10 3 1 7 . . 1 . . 6 Fast Attach 21 | . . 3 6 1 2 2 . . 4 . . 3 Attach 50 | 6 1 9 7 5 3 10 . . 2 . . 7 Detach 9 | . . 1 . 2 1 5 . . . . . . Swap 15 | . . 4 1 2 4 3 . . 1 . . . Drop 35 | . . 17 6 1 3 3 . . 1 . . 4 Fire 93 | . 10 33 15 . 3 20 7 . . . . 5 Melee . | . . . . . . . . . . . . . Ram 2 | . . . . 1 . . . . . . . 1 Kick 3 | . . 3 . . . . . . . . . . Crush . | . . . . . . . . . . . . . Escape Stasis 21 | . . . . . . . 15 . . . . 6 Rewire . | . . . . . . . . . . . . . Trap . | . . . . . . . . . . . . . Miscellaneous . | . . . . . . . . . . . . . Route ------- -11/Scrapyard -10/Materials -9/Materials (discovered 2 exits: *Mat / [*Min]) -8/Materials -7/Factory -6/Factory -5/Factory -5/Extension (discovered 3 exits: *Fac x2 / [*Cet]) -5/Cetus -4/Factory -4/Upper Caves -4/Upper Caves -3/Research (discovered 1 exit: [*Arm]) History --------- Turn | Location | Event 17 | -11/Scrapyard | Discovered new exit (range 16) 69 | -11/Scrapyard | Entered Materials 227 | -10/Materials | Discovered new exit (range 16) 266 | -10/Materials | Entered another Materials area 266 | -9/Materials | Evolved 2 slots: Propulsion x1, Utility x1 314 | -9/Materials | Build established: Mutant 718 | -9/Materials | Discovered new exit (range 15) 887 | -9/Materials | Core integrity fell below 50% 905 | -9/Materials | Discovered new exit (range 18) 924 | -9/Materials | Entered another Materials area 924 | -8/Materials | Evolved 2 slots: Power x1, Propulsion x1 1011 | -8/Materials | Build established: Sprinter 1168 | -8/Materials | Discovered new exit (range 10) 1194 | -8/Materials | Lost 3 parts (1n1u1w) 1198 | -8/Materials | Entered Factory 1198 | -7/Factory | Evolved 2 slots: Utility x1, Weapon x1 1296 | -7/Factory | Discovered new exit (range 16) 1303 | -7/Factory | Entered another Factory area 1303 | -6/Factory | Evolved 2 slots: Propulsion x1, Utility x1 1398 | -6/Factory | Discovered new exit (range 13) 1449 | -6/Factory | Entered another Factory area 1449 | -5/Factory | Evolved 2 slots: Power x1, Propulsion x1 1672 | -5/Factory | Lost 4 parts (1p3u) 1720 | -5/Factory | Discovered new exit (range 14) 1724 | -5/Factory | Entered Extension 1784 | -5/Extension | Identified exit to Factory 1811 | -5/Extension | Spotted B-75 Beast 1813 | -5/Extension | Spotted B-75 Beast 1838 | -5/Extension | Discovered new exit (range 20) 1842 | -5/Extension | Entered Cetus 1845 | -5/Cetus | Spotted Cetus Guard 1845 | -5/Cetus | Spotted Cetus Guard 1846 | -5/Cetus | Spotted Cetus Guard 1846 | -5/Cetus | Spotted Cetus Guard 1850 | -5/Cetus | Discovered exit to Factory (range 20) 1854 | -5/Cetus | Entered Factory 1854 | -4/Factory | Evolved 2 slots: Utility x1, Weapon x1 1872 | -4/Factory | Spotted B-86 Titan 1873 | -4/Factory | Lost 3 parts (2p1w) 1939 | -4/Factory | Found Prototype Hackware 1939 | -4/Factory | Identified Exp. Hacking Suite 1977 | -4/Factory | Discovered new exit (range 19) 1985 | -4/Factory | Entered Upper Caves 1997 | -4/Upper Caves | Encountered a Warlord checkpoint 2015 | -4/Upper Caves | Lost 4 parts (1n1u2w) 2040 | -4/Upper Caves | Spotted B-86 Titan 2057 | -4/Upper Caves | Discovered new exit (range 9) 2059 | -4/Upper Caves | Entered another Upper Caves area 2074 | -4/Upper Caves | Discovered new exit (range 10) 2076 | -4/Upper Caves | Entered Research 2076 | -3/Research | Evolved 2 slots: Power x1, Propulsion x1 2168 | -3/Research | Discovered new exit (range 19) 2179 | -3/Research | Spotted B-86 Titan 2384 | -3/Research | Spotted B-86 Titan 2440 | -3/Research | Lost 12 parts (2p6n3u1w) 2448 | -3/Research | Core integrity fell below 50% 2491 | -3/Research | Core integrity fell below 20% 2501 | -3/Research | Destroyed by H-77 Assassin with High-powered Shotgun Last Messages --------------- 02409_ Slug penetrates Wall. 02429_ Biomechanical Wings severed. 02439_ Acquired Q-thruster. 02440_ Imp. Transmission Jammer severed. 02441_ VTOL Module destroyed. 02444_ Penetrated by Slug. 02447_ Slug penetrates Wall. 02455_ B-86 Titan activates siege mode. 02455_ Knocked back. 02455_ Penetrated by Slug. 02455_ Slug penetrates Reinforced Barrier. 02455_ Slug penetrates Y-72 Warden. 02457_ Penetrated by Slug. 02457_ Q-thruster destroyed. 02457_ Slug penetrates Wall. 02483_ Adv. Visual Processing Unit severed. 02488_ Slammed into P-80 Master. 02493_ Door malfunctions. 02496_ W-44 Eye sends out distress signal. 02498_ Penetrated by Slug. Map ----- +----------------------------------------------------+ | ?????????????????????????????????????????????????? | | ?????????????????????????????????????????????????? | | ?????????????????????????????????????????????????? | | ???????????????????????????????????????????####### | | ???????????????????????????????????????????? | | ????????????????????????????????????????????? | | ?????????????????????????????????###########?? | | ?????????????????????????????????# #???? | | ?????????????????????????????????#* #????? | | ?????????????????????????????????# #?????? | | ?????????????????????????????????# #?????? | | ?????????????????????????????????# ####### | | ?????????????????????????????????# + | | ?????????????????????????????????#! # | | ?????????????????????????????????# / | | ?????????????????????????############+############ | | ?????????????????????????# # ########## | | ?????????????????????????# # | | ?????????????????????????# + | | ?????????????????????????# # | | ?????????????????????????# # ####### | | ?????????????????????????# #######?????# | | ?????????????????????????##########?##????????# | | ???????????# ###+################## ??????# | | ???????????# #? ????# | | ???????????# h @ cc #???""" ??# | | ?????????? h w p #??""R"" # | | ?????????????+####/##############c #??"" "" + | | ?????????????????????????# ??# # # | | ?????????????????????????# # # ??# | | ?????????????????????????# + ########### | | ?????????????????????????# = # | | ?????????????????????????# ??# | | ?????????????????????????# ????# | | ?????????????????????????#??????#######/####### | | ??????????????????????????????????????? ????# | | ???????????????????????????????????????? #??# | | ????????????????????????????????????????? #??# | | ?????????????????????????????????????????? #??# | | ?????????????????????????????????????????? #??# | | ??????????????????????????????????????????????# | | ??????????????????????????????????????????????# | | ??????????????????????????????????????????????# | | ??????????????????????????????????????????????# | | ??????????????????????????????????????????????+ | | ??????????????????????????????????????????????? | | ??????????????????????????????????????????????? | | ?????????????????????????????????????????????????? | | ?????????????????????????????????????????????????? | | ?????????????????????????????????????????????????? | +----------------------------------------------------+ Best States ------------- Heat Dissipation 73 Energy Generation 50 Energy Capacity 655 Matter Stores 300 Matter Capacity 300 Sight Range 20 Terrain Scan Density 10 ECM Strength 2 Jamming Range 14 Additional Mass Support 9 Armor Coverage 150 Phase Shifting 5 Evasion (%) 73 Targeting Accuracy 5 Offensive Hacking 16 Item Schematics ----------------- None Robot Schematics ------------------ None Fabricated ------------ Nothing Repaired ---------- Nothing Studied --------- None Alien Tech Used ----------------- None Achievements -------------- None Challenges ------------ None Game ------ Seed MachineSupersonicGuard Manual? 0 Play Time 00:59:58 Cumulative 39.5 hours Start 2026.07.01 @ 07:51:38 End 2026.07.01 @ 08:54:25 Sessions 1 Manual Loads 0 Difficulty Rogue Special Mode None Game No. 58 Rogue 30 Adventurer 28 Explorer 0 Win Type - Total 0 Types 0/0/0/0/0/0/0/0/0/0 Lore% 16 Gallery% 27 Achievement% 21 Wizard Run 0 Options --------- Layout 1 ASCII 0 Keyboard 0 Movement Mouse Keybinds 0 Fullscreen 1 Font 24/Smallcaps Map View 50x35 Zoom Use 0% Tactical HUD 1 Map Filters NONE Filters NONE Steam 1 RUN: 91488f59-07eb-4d94-8ae7-f408a5e609ae